Workbook

Sheet Info

Sheet Trial (hidden)

Sheet Instructions (hidden)
A1: Excel Skills | Annuity Investment Return Template
A2: Instructions
A3: www.excel-skills.com
A5: This template enables users to calculate the annual investment return that results from the investment of a monthly annuity. Users are required to enter the monthly annuity amounts and the appropriate investment valuation in order to calculate an annual investment return. The template also facilitates including a lump sum in the investment return calculation, calculating an investment valuation forecast and calculating a cumulative annual investment return. The investment return calculations in this unique template can be applied to most annuity type investments and can even be used to calculate the investment return that results from pension fund contributions.
A7: The following sheets are included in the template:
A8: ROI - enter the monthly annuity amounts and the investment valuation on this sheet in order to automatically calculate the annual investment return. The monthly and annual periods are determined by the start date that is entered in cell D2 and a lump sum amount at the beginning of the investment period can be entered in cell G2. The forecast section can be used to calculate an investment valuation forecast.
A9: Balances - this sheet includes a detailed calculation of the investment valuation and annual investment return (column A to G) based on the values entered on the ROI sheet. The calculations in columns I to L can be used to calculate the cumulative annual investment return. The Goal Seek feature should be used to produce an accurate calculation of the overall investment return.
A10: Chart - the chart on this sheet displays the annual and cumulative annual investment return.
A12: Annual Investment Return Calculation
A14: User input
A16: All the investment return calculations in this template are based on the monthly annuity amounts that are entered in the cell range from cell B6 to U17 on the ROI sheet. Users are also required to enter a valuation for the annuity investment in row 20. All the cells with a yellow cell background require user input and the cells with a light blue cell background contain formulas.
A18: The start date that is specified in cell D2 determines the monthly periods that are included in column A and the annual periods that are included in row 5. All investment return calculations are based on the assumption that the appropriate annuity amounts are paid at the end of each monthly period - the start date that is specified in cell D2 should therefore not be the date of the first payment, but a date one month before the first annuity amount is paid.
A20: Note: The start date should be entered when you start using the template and should not be amended subsequently. If you amend the start date, the annuity amounts that have been entered in the cell range from cell B6 to U17 may not match the correct monthly periods.
A22: The lump sum amount that is specified in cell G2 is included at the beginning of the investment period for annual investment return calculation purposes. A value should be entered in this cell if a lump sum amount is invested in addition to the monthly annuity amounts that are specified in cells B6 to U17. If there is no lump sum investment at the beginning of the investment period, a nil value should be entered in cell G2.
A24: All monthly annuity amounts should be entered in the cell range from cell B6 to U17 and should match the appropriate monthly periods that are included in column A and the annual periods that are included in row 5. It is also important to note that the annuity amounts should match the valuation amounts that are entered in row 20.
A26: For example: If annuity amounts have been entered up to the December 2010 monthly period, the valuation that is entered in row 20 should be the investment valuation at the end of December 2010. If the annuity amounts do not match the valuation date, the annual investment return calculations will not be accurate.
A28: Note: You don't have to enter annuity amounts for a full 12 month period. As long as the valuation date matches the annuity amounts that are entered, the annual investment return will be calculated accurately. You can therefore calculate the appropriate annual investment return on an ongoing basis - if you've only entered 3 annuity amounts and you've entered the investment valuation at the end of the 3rd month, the annual investment return calculation is calculated for the period that ends after the 3rd month.
A30: The investment valuations that are entered in row 20 can be obtained from the monthly statements that are received from the financial institution with which the annuity is invested. In order to calculate and monitor the investment return that results from an annuity investment, it is therefore imperative that regular monthly statements are obtained from the appropriate financial institution and that these statements reflect a valuation of the investment.
A32: Investment Return Calculations
A34: The ROI sheet includes calculations of the cumulative contributions, investment surplus or deficit, investment surplus or deficit percentage, the annual investment return percentage and the cumulative annual investment return percentage. All of these calculations are automated except for the cumulative annual investment percentage - refer to the Cumulative Annual Investment Return Calculation section of these instructions for more information on how the cumulative investment return should be calculated.
A36: The cumulative contributions amount that is calculated in row 22 is the sum of all the appropriate monthly annuity amounts and the lump sum that is entered in cell G2. This amount therefore reflects the total funds that have been paid into the annuity investment.
A38: The surplus or deficit amounts in row 23 are calculated by deducting the appropriate cumulative contribution amounts from the valuation amounts that are entered in row 20. The surplus or deficit percentages in row 24 are calculated by dividing the surplus or deficit amounts by the cumulative contribution amounts. These values therefore indicate whether the investment valuation exceeds the funds that have been contributed to the investment - if the values are negative, it indicates that the investment is worth less than the funds that have been invested.
A40: The annual return percentage that is calculated in row 25 is based on the annuity amounts that are entered in row 6 to 17 and the growth of the investment which is determined by including the previous year's valuation as the present value (PV) and the current year's valuation as the future value (FV) in the calculation. The average monthly annuity amount is calculated and included in the calculation as the monthly payment amount.
A42: Note: The monthly payments that are associated with most annuity type investments are usually subject to a single annual escalation percentage which means that the annuity payments remain constant for each 12 month period that forms part of the investment term. Our calculation of the annual investment return is therefore based on the assumption that monthly payments remain constant over each 12 month period.
A44: Note: If the monthly annuity amounts are not constant, the annual investment return that is calculated will not be 100% accurate but because we calculate the return based on a 12 month average monthly payment, the actual investment return will not differ significantly from our calculation. The template can therefore be used for both constant and variable monthly annuities.
A46: Investment Forecast
A48: An annuity investment forecast has been included in rows 29 to 33 on the ROI sheet. Users are required to enter an initial monthly annuity amount, an annual escalation percentage and a forecasted annual investment return in order to compile an investment valuation forecast.
A50: The annual annuity escalation percentage that is entered in row 30 is applied to the initial annuity amount that is entered in cell B29 in order to calculate the monthly annuity amounts in row 32. These amounts are included in the investment valuation forecast calculation as the monthly payment amounts; the forecasted annual investment return (row 31) is included as the rate of return and the previous period's valuation is included as the present value (PV).
A52: We recommend entering initial investment return expectations into the forecast section on the ROI sheet and then using the annual investment return calculations in order to measure actual annual investment returns against the forecasted investment returns. The forecast calculations can also be amended throughout the investment term in order to facilitate a comparison between a revised forecast and actual annual investment returns.
A54: Annuity Investment Balances
A56: The calculations in column A to G on the Balances sheet have been included in the template in order to provide a detailed analysis of the monthly annuity investment balances. All these calculations are based on the values that are entered on the ROI sheet. If the monthly annuity amounts for each 12 month period are constant, the balances that are calculated in column F should agree to the valuation amounts that are entered in row 20 on the ROI sheet.
A58: If the monthly annuity amounts for each 12 month period are not constant, you may notice that the investment balances that are calculated in column F differ from the appropriate valuation amounts but these differences will not be significant and will not have a significant influence on the annual investment return that is calculated.
A60: The calculations in column I to L on the Balances sheet have been included in the template to enable users to calculate a cumulative annual investment return that is 100% accurate.
A62: Cumulative Annual Investment Return Calculation
A64: Calculation Methodology
A66: The calculation of a cumulative annual investment return for annuity investments is quite complex because the monthly annuity amounts are not usually constant over an investment period of longer than 12 months and the monthly annuity amounts have to be allocated to the correct monthly investment period in order to calculate a 100% accurate overall annual investment return.
A68: As we've mentioned before, the annual investment return is calculated based on the assumption that the monthly annuity amounts that are included in the appropriate 12 month period remain constant. This is an assumption that holds true for most annuity investments and even if the monthly annuity amounts are not constant, the investment return that is calculated over the appropriate 12 month period based on the average monthly annuity amount should not differ significantly from the actual investment return.
A70: The assumption of a constant monthly annuity amount should not be applied to an investment term of longer than 12 months. The monthly annuity amounts of a typical annuity investment will differ over periods of longer than 12 months and if an average monthly annuity amount is used to calculate an overall annual investment return, the calculation result is guaranteed to be inaccurate.
A72: Note: The annual annuity investment return in this template (row 25 on the ROI sheet) is calculated by using the RATE function and basing the calculation on the average monthly annuity amount for the appropriate 12 month period. As we've just explained, this function can therefore not be used in order to calculate a cumulative annual investment return because the calculation result will not be accurate.
A74: Another function that can be considered when calculating the cumulative annual investment return is the IRR function. This function incorporates variable cash flows but can only be calculated on an annual basis. The problem with applying this calculation methodology to monthly annuity investments is that the total annual cash flows are used in the calculation and the actual annuities are paid on a monthly basis. The total annual cash outflow that results from the payment of annuities can therefore only be included at the start or end of the appropriate 12 month period for the purpose of the IRR calculation.
A76: When using the IRR function, the cash flows of the annuity investment are therefore not matched to the appropriate monthly periods and the calculation result is therefore guaranteed to be inaccurate. This is a shortcoming of all IRR based calculations and an important attribute that users should take into account whenever they encounter an annuity investment return calculation that is based on the IRR function.
A78: The conclusion that can be reached based on the above is that there is no single Excel function that can calculate an accurate cumulative investment return for an annuity investment and it is therefore impossible to include this calculation in a single cell.
A80: In order to calculate an accurate cumulative annual investment return, some level of manual calculation is therefore required. We have facilitated this calculation in columns I to L on the Balances sheet and we'll now explain how you can use the Goal Seek Excel feature in order to calculate an accurate cumulative annual investment return for an annuity investment over any investment term.
A82: Manual Calculation
A84: Our manual calculation of the cumulative annual investment return in columns I to L on the Balances sheet includes an opening balance, an investment return percentage, an investment growth amount and a closing balance. The monthly annuity amounts that are entered on the ROI sheet and included in column D on the Balances sheet are also taken into account in our cumulative annual investment return calculation.
A86: This calculation may seem complicated but it has been set up so that it is actually quite simple. Users are only required to specify the appropriate investment valuation amount (closing balance) in column L and the cumulative investment return percentage is then calculated automatically.
A88: An investment valuation at the end of the investment period for which the cumulative annual investment return is calculated should be specified in this column. The list box in cell J3 can be used to highlight the appropriate monthly closing balance - after selecting the appropriate month from this list box, the cell that contains the appropriate closing balance (investment valuation amount) in column L will be highlighted. The value in this cell needs to be replaced by the appropriate valuation amount in order to calculate the cumulative annual investment return.
A90: It is however not simply a question of replacing the calculated closing balance with the appropriate valuation amount - we actually need to determine which annual investment return percentage would result in the closing balance in column L equaling the appropriate investment valuation amount. This can be achieved on a trial and error basis by entering a number of different investment return percentages in the cell L3 (which determines the investment return percentage values that are included in column J) until the closing balance in column L equals the appropriate investment valuation amount or we can use the Goal Seek Excel feature to determine this value instantly.
A92: Step by Step Instructions - Goal Seek
A94: The following steps need to be completed in order to calculate the cumulative annual investment return.
A96: Step 1 - We assume that you've entered the monthly annuity payments on the ROI sheet and that you entered the appropriate investment valuation in row 20 on the ROI sheet. You now need to find the appropriate closing balance in column L on the Balances sheet and replace this value with the appropriate valuation amount. This can be accomplished by simply selecting the appropriate month from the list box in cell J3 on the Balances sheet. After selecting the appropriate month from this list box, the appropriate closing balance will be highlighted in orange. You then need to select the cell that has been highlighted.
A98: Step 2 - Access the Goal Seek Excel feature by selecting the What-If Analysis feature from the Data Tools section on the Data tab of the ribbon. The Goal Seek feature can be selected from the menu displayed after accessing the What-If Analysis feature.
A100: Step 3 - The Goal Seek dialog box includes 3 input fields. The first is the "Set Cell" input field - if you've selected the cell highlighted in orange before you accessed the Goal Seek feature, the cell reference will already be included in the input field. If the correct cell is not included in the input field, simply select the correct cell by clicking the icon next to the input field.
A102: Step 4 - Enter the appropriate investment valuation amount in the "To value" input field. This value should be the same as the valuation amount that has been entered on the ROI sheet.
A104: Note: If the annuity amounts that have been entered on the ROI sheet are constant for each 12 month period, the closing balance in column F on the Balances sheet should agree to the valuation amount that you need to enter in this input field. If the monthly annuity amounts are not constant, the closing balance in column F may differ from the valuation amount but the difference will not be significant.
A106: Step 5 - Select the "By changing cell" input field and select cell L3. As we've mentioned before, this cell determines the annual investment return percentages that are included in column J on the Balances sheet and should therefore always be selected in the third input field of the Goal Seek function.
A108: Step 6 - Click the OK button. A message should then be displayed to indicate that the appropriate value has been calculated and the value in cell L3 should automatically change to the appropriate cumulative annual investment return percentage. This value will also be displayed in column J on the Balances sheet.
A110: Step 7 - Copy the value in cell L3 and paste it as a value into the appropriate cell in row 26 on the ROI sheet. This will ensure that you keep record of all the appropriate cumulative annual investment return percentages that have been calculated and that the chart on the Chart sheet is updated accordingly.
A112: Note: The closing balances in columns F and L on the Balances sheet are not supposed to be the same because the amounts in these columns are not calculated on the same basis. The only values that should agree are the closing balances of the period that has been included in the cumulative investment return calculation. The balances for this period will also only be exactly the same if the monthly annuity amounts that are included in each annual period are constant.
A114: Annual Investment Return Chart
A116: The chart on the Chart sheet displays the investment return for each annual period (row 25 on the ROI sheet) and the cumulative investment return that has been calculated manually and copied into row 26 for each annual period. The chart therefore facilitates viewing the investment returns that are achieved during each annual investment period and the effect that the annual investment returns have on the cumulative annual investment return.
A118: Note: If the chart contains an annual investment return percentage for a particular month but no cumulative annual investment return percentage, it means that the appropriate cumulative annual investment return percentage has not been copied into row 26 on the ROI sheet.
A120: Help & Customization
A122: If you experience any difficulty while using this template and you are not able to find the appropriate guidance in these instructions, please e-mail us at support@excel-skills.com for assistance. This template has been designed with flexibility in mind to ensure that it can be used in most business environments. If however you need an Excel based template that is customized specifically for your business requirements, please e-mail our Support function and provide a brief explanation of your requirements.
A124: © Copyright
A126: This template remains the intellectual property of www.excel-skills.com and is protected by international copyright laws. Any publication or distribution of this template outside the scope of the permitted use of the template is expressly prohibited. In terms of the permitted use of this template, only the distribution of the template to persons within the same organisation as the registered user or persons outside the organisation who can reasonably be expected to require access to the template as a direct result of the use of the template by the registered user is allowed. Subsequent distribution of the template by parties outside of the organisation is however expressly prohibited and represents an infringement of international copyright laws.

Sheet ROI (hidden)
A1: Monthly Annuities
A2: Return on Investment Calculation | C2: Start Date | D2: 2020-08-01 | F2: Lump sum | G2: 0
B4: =COLUMN(C1)-COLUMN($B$1) -> 1 | C4: =COLUMN(D1)-COLUMN($B$1) -> 2 | D4: 3 | E4: 4 | F4: 5 | G4: 6 | H4: 7 | I4: 8 | J4: 9 | K4: 10 | L4: 11 | M4: 12 | N4: 13 | O4: 14 | P4: 15 | Q4: 16 | R4: 17 | S4: 18 | T4: 19 | U4: 20
A5: Month | B5: =YEAR(DATE(YEAR($D$2)+COLUMN(D1)-COLUMN($D$1),MONTH($D$2),0)) -> 2020 | C5: =YEAR(DATE(YEAR($D$2)+COLUMN(E1)-COLUMN($D$1),MONTH($D$2),0)) -> 2021 | D5: 2022 | E5: 2023 | F5: 2024 | G5: 2025 | H5: 2026 | I5: 2027 | J5: 2028 | K5: 2029 | L5: 2030 | M5: 2031 | N5: 2032 | O5: 2033 | P5: 2034 | Q5: 2035 | R5: 2036 | S5: 2037 | T5: 2038 | U5: 2039
A6: =DATE(YEAR($D$2),MONTH($D$2)+1,0) -> 2020-08-31 | B6: 500 | C6: 525 | D6: 551.25 | E6: 584.3 | F6: 631.2 | G6: 669.1 | H6: 709.2 | I6: 751.8 | J6: 796.9 | K6: 844.7 | L6: 895.4 | M6: 949.1 | N6: 1006.05 | O6: 1066.4 | P6: 1130.4 | Q6: 1198.2 | R6: 1270.15 | S6: 1346.3 | T6: 1427.1 | U6: 1512.7
A7: =DATE(YEAR(A6),MONTH(A6)+2,0) -> 2020-09-30 | B7: 500 | C7: 525 | D7: 551.25 | E7: 584.3 | F7: 631.2 | G7: 669.1 | H7: 709.2 | I7: 751.8 | J7: 796.9 | K7: 844.7 | L7: 895.4 | M7: 949.1 | N7: 1006.05 | O7: 1066.4 | P7: 1130.4 | Q7: 1198.2 | R7: 1270.15 | S7: 1346.3 | T7: 1427.1 | U7: 1512.7
A8: 2020-10-31 | B8: 500 | C8: 525 | D8: 551.25 | E8: 584.3 | F8: 631.2 | G8: 669.1 | H8: 709.2 | I8: 751.8 | J8: 796.9 | K8: 844.7 | L8: 895.4 | M8: 949.1 | N8: 1006.05 | O8: 1066.4 | P8: 1130.4 | Q8: 1198.2 | R8: 1270.15 | S8: 1346.3 | T8: 1427.1 | U8: 1512.7
A9: 2020-11-30 | B9: 500 | C9: 525 | D9: 551.25 | E9: 584.3 | F9: 631.2 | G9: 669.1 | H9: 709.2 | I9: 751.8 | J9: 796.9 | K9: 844.7 | L9: 895.4 | M9: 949.1 | N9: 1006.05 | O9: 1066.4 | P9: 1130.4 | Q9: 1198.2 | R9: 1270.15 | S9: 1346.3 | T9: 1427.1 | U9: 1512.7
A10: 2020-12-31 | B10: 500 | C10: 525 | D10: 551.25 | E10: 584.3 | F10: 631.2 | G10: 669.1 | H10: 709.2 | I10: 751.8 | J10: 796.9 | K10: 844.7 | L10: 895.4 | M10: 949.1 | N10: 1006.05 | O10: 1066.4 | P10: 1130.4 | Q10: 1198.2 | R10: 1270.15 | S10: 1346.3 | T10: 1427.1 | U10: 1512.7
A11: 2021-01-31 | B11: 500 | C11: 525 | D11: 551.25 | E11: 584.3 | F11: 631.2 | G11: 669.1 | H11: 709.2 | I11: 751.8 | J11: 796.9 | K11: 844.7 | L11: 895.4 | M11: 949.1 | N11: 1006.05 | O11: 1066.4 | P11: 1130.4 | Q11: 1198.2 | R11: 1270.15 | S11: 1346.3 | T11: 1427.1 | U11: 1512.7
A12: 2021-02-28 | B12: 500 | C12: 525 | D12: 551.25 | E12: 584.3 | F12: 631.2 | G12: 669.1 | H12: 709.2 | I12: 751.8 | J12: 796.9 | K12: 844.7 | L12: 895.4 | M12: 949.1 | N12: 1006.05 | O12: 1066.4 | P12: 1130.4 | Q12: 1198.2 | R12: 1270.15 | S12: 1346.3 | T12: 1427.1 | U12: 1512.7
A13: 2021-03-31 | B13: 500 | C13: 525 | D13: 551.25 | E13: 584.3 | F13: 631.2 | G13: 669.1 | H13: 709.2 | I13: 751.8 | J13: 796.9 | K13: 844.7 | L13: 895.4 | M13: 949.1 | N13: 1006.05 | O13: 1066.4 | P13: 1130.4 | Q13: 1198.2 | R13: 1270.15 | S13: 1346.3 | T13: 1427.1 | U13: 1512.7
A14: 2021-04-30 | B14: 500 | C14: 525 | D14: 551.25 | E14: 584.3 | F14: 631.2 | G14: 669.1 | H14: 709.2 | I14: 751.8 | J14: 796.9 | K14: 844.7 | L14: 895.4 | M14: 949.1 | N14: 1006.05 | O14: 1066.4 | P14: 1130.4 | Q14: 1198.2 | R14: 1270.15 | S14: 1346.3 | T14: 1427.1 | U14: 1512.7
A15: 2021-05-31 | B15: 500 | C15: 525 | D15: 551.25 | E15: 584.3 | F15: 631.2 | G15: 669.1 | H15: 709.2 | I15: 751.8 | J15: 796.9 | K15: 844.7 | L15: 895.4 | M15: 949.1 | N15: 1006.05 | O15: 1066.4 | P15: 1130.4 | Q15: 1198.2 | R15: 1270.15 | S15: 1346.3 | T15: 1427.1 | U15: 1512.7
A16: 2021-06-30 | B16: 500 | C16: 525 | D16: 551.25 | E16: 584.3 | F16: 631.2 | G16: 669.1 | H16: 709.2 | I16: 751.8 | J16: 796.9 | K16: 844.7 | L16: 895.4 | M16: 949.1 | N16: 1006.05 | O16: 1066.4 | P16: 1130.4 | Q16: 1198.2 | R16: 1270.15 | S16: 1346.3 | T16: 1427.1 | U16: 1512.7
A17: 2021-07-31 | B17: 500 | C17: 525 | D17: 551.25 | E17: 584.3 | F17: 631.2 | G17: 669.1 | H17: 709.2 | I17: 751.8 | J17: 796.9 | K17: 844.7 | L17: 895.4 | M17: 949.1 | N17: 1006.05 | O17: 1066.4 | P17: 1130.4 | Q17: 1198.2 | R17: 1270.15 | S17: 1346.3 | T17: 1427.1 | U17: 1512.7
A18: Total | B18: =SUM(B6:B17) -> 6000 | C18: 6300 | D18: 6615 | E18: 7011.6 | F18: 7574.4 | G18: 8029.2 | H18: 8510.4 | I18: 9021.6 | J18: 9562.8 | K18: 10136.4 | L18: 10744.8 | M18: 11389.2 | N18: 12072.6 | O18: 12796.8 | P18: 13564.8 | Q18: 14378.4 | R18: 15241.8 | S18: 16155.6 | T18: 17125.2 | U18: 18152.4
A20: Valuation | B20: 6200 | C20: 13300 | D20: 21450 | E20: 30200 | F20: 38950 | G20: 50700 | H20: 62020 | I20: 75400 | J20: 88200 | K20: 100600 | L20: 118560 | M20: 141240 | N20: 157780 | O20: 180920 | P20: 210430 | Q20: 241800 | R20: 280150 | S20: 312080 | T20: 340200 | U20: 390820
A22: Cumulative Contributions | B22: =SUM($B18:B18)+$G$2 -> 6000 | C22: =SUM($B18:C18)+$G$2 -> 12300 | D22: =SUM($B18:D18)+$G$2 -> 18915 | E22: =SUM($B18:E18)+$G$2 -> 25926.6 | F22: =SUM($B18:F18)+$G$2 -> 33501 | G22: =SUM($B18:G18)+$G$2 -> 41530.2 | H22: =SUM($B18:H18)+$G$2 -> 50040.6 | I22: =SUM($B18:I18)+$G$2 -> 59062.2 | J22: =SUM($B18:J18)+$G$2 -> 68625 | K22: =SUM($B18:K18)+$G$2 -> 78761.4 | L22: =SUM($B18:L18)+$G$2 -> 89506.2 | M22: =SUM($B18:M18)+$G$2 -> 100895.4 | N22: =SUM($B18:N18)+$G$2 -> 112968 | O22: =SUM($B18:O18)+$G$2 -> 125764.8 | P22: =SUM($B18:P18)+$G$2 -> 139329.6 | Q22: =SUM($B18:Q18)+$G$2 -> 153708 | R22: =SUM($B18:R18)+$G$2 -> 168949.8 | S22: =SUM($B18:S18)+$G$2 -> 185105.4 | T22: =SUM($B18:T18)+$G$2 -> 202230.6 | U22: =SUM($B18:U18)+$G$2 -> 220383
A23: Surplus / (Deficit) | B23: =IF(B20=0,0,B20-SUM($B$18:B18)-$G$2) -> 200 | C23: =IF(C20=0,0,C20-SUM($B$18:C18)-$G$2) -> 1000 | D23: =IF(D20=0,0,D20-SUM($B$18:D18)-$G$2) -> 2535 | E23: =IF(E20=0,0,E20-SUM($B$18:E18)-$G$2) -> 4273.4 | F23: =IF(F20=0,0,F20-SUM($B$18:F18)-$G$2) -> 5449 | G23: =IF(G20=0,0,G20-SUM($B$18:G18)-$G$2) -> 9169.8 | H23: =IF(H20=0,0,H20-SUM($B$18:H18)-$G$2) -> 11979.4 | I23: =IF(I20=0,0,I20-SUM($B$18:I18)-$G$2) -> 16337.8 | J23: =IF(J20=0,0,J20-SUM($B$18:J18)-$G$2) -> 19575 | K23: =IF(K20=0,0,K20-SUM($B$18:K18)-$G$2) -> 21838.6 | L23: =IF(L20=0,0,L20-SUM($B$18:L18)-$G$2) -> 29053.8 | M23: =IF(M20=0,0,M20-SUM($B$18:M18)-$G$2) -> 40344.6 | N23: =IF(N20=0,0,N20-SUM($B$18:N18)-$G$2) -> 44812 | O23: =IF(O20=0,0,O20-SUM($B$18:O18)-$G$2) -> 55155.2 | P23: =IF(P20=0,0,P20-SUM($B$18:P18)-$G$2) -> 71100.4 | Q23: =IF(Q20=0,0,Q20-SUM($B$18:Q18)-$G$2) -> 88092 | R23: =IF(R20=0,0,R20-SUM($B$18:R18)-$G$2) -> 111200.2 | S23: =IF(S20=0,0,S20-SUM($B$18:S18)-$G$2) -> 126974.6 | T23: =IF(T20=0,0,T20-SUM($B$18:T18)-$G$2) -> 137969.4 | U23: =IF(U20=0,0,U20-SUM($B$18:U18)-$G$2) -> 170437
A24: Surplus / (Deficit) % | B24: =IF(B20=0,0,IF(B22=0,0,B23/B22)) -> 0.03333333333 | C24: =IF(C20=0,0,IF(C22=0,0,C23/C22)) -> 0.08130081301 | D24: 0.1340206186 | E24: 0.1648268574 | F24: 0.1626518611 | G24: 0.2207983588 | H24: 0.2393936124 | I24: 0.276620241 | J24: 0.2852459016 | K24: 0.2772754166 | L24: 0.3246009774 | M24: 0.3998656034 | N24: 0.3966787055 | O24: 0.4385583247 | P24: 0.5103036254 | Q24: 0.5731126552 | R24: 0.6581848573 | S24: 0.6859583783 | T24: 0.6822379996 | U24: 0.7733672742
A25: Annual Return | B25: =IF(B20=0,0,IF(ISERROR(RATE(COUNTIF(B6:B17,">0"),-(B18/COUNTIF(B6:B17,">0")),-$G$2,B$20,0))=TRUE,0,RATE(COUNTIF(B6:B17,">0"),-(B18/COUNTIF(B6:B17,">0")),-$G$2,B$20,0)*12)) -> 0.07129622978 | C25: =IF(C20=0,0,IF(ISERROR(RATE(COUNTIF(C6:C17,">0"),-(C18/COUNTIF(C6:C17,">0")),-B20,C$20,0))=TRUE,0,RATE(COUNTIF(C6:C17,">0"),-(C18/COUNTIF(C6:C17,">0")),-B20,C$20,0)*12)) -> 0.08506686043 | D25: =IF(D20=0,0,IF(ISERROR(RATE(COUNTIF(D6:D17,">0"),-(D18/COUNTIF(D6:D17,">0")),-C20,D$20,0))=TRUE,0,RATE(COUNTIF(D6:D17,">0"),-(D18/COUNTIF(D6:D17,">0")),-C20,D$20,0)*12)) -> 0.09042888962 | E25: 0.06841125225 | F25: 0.03438879703 | G25: 0.08407835838 | H25: 0.05031401438 | I25: 0.06401709956 | J25: 0.03985495956 | K25: 0.0241171267 | L25: 0.06635684371 | M25: 0.08766756339 | N25: 0.03002692861 | O25: 0.06146845155 | P25: 0.08208780745 | Q25: 0.07564861792 | R25: 0.08918809554 | S25: 0.05353725162 | T25: 0.03384163979 | U25: 0.08943561852
A26: Cumulative Annual Return | B26: 0.07129622977 | C26: 0.08190300173 | D26: 0.0868619843 | E26: 0.07827420464 | F26: 0.06137587985 | G26: 0.06892784962 | H26: 0.06342466007 | I26: 0.06358162881 | J26: 0.05788296623 | K26: 0.05054751714 | L26: 0.0537262934 | M26: 0.06025490545 | N26: 0.05475928822 | O26: 0.05590354609 | P26: 0.0602107308 | Q26: 0.06267790102 | R26: 0.0668042977 | S26: 0.06480908121 | T26: 0.06040428111 | U26: 0.06438564511
A28: Forecast
A29: Initial monthly annuity | B29: 500
A30: Annual annuity escalation | C30: 0.06 | D30: 0.06 | E30: 0.05995 | F30: 0.06 | G30: 0.06 | H30: 0.06 | I30: 0.06 | J30: 0.06 | K30: 0.06 | L30: 0.06 | M30: 0.06 | N30: 0.06 | O30: 0.06 | P30: 0.06 | Q30: 0.06 | R30: 0.06 | S30: 0.06 | T30: 0.06 | U30: 0.06
A31: Forecasted Annual Return | B31: 0.08 | C31: 0.08 | D31: 0.08 | E31: 0.08 | F31: 0.08 | G31: 0.08 | H31: 0.08 | I31: 0.08 | J31: 0.08 | K31: 0.08 | L31: 0.08 | M31: 0.08 | N31: 0.08 | O31: 0.08 | P31: 0.08 | Q31: 0.08 | R31: 0.08 | S31: 0.08 | T31: 0.08 | U31: 0.08
A32: Monthly Annuity | B32: =$B$29 -> 500 | C32: =B32*(1+C30) -> 530 | D32: =C32*(1+D30) -> 561.8 | E32: 595.47991 | F32: 631.2087046 | G32: 669.0812269 | H32: 709.2261005 | I32: 751.7796665 | J32: 796.8864465 | K32: 844.6996333 | L32: 895.3816113 | M32: 949.104508 | N32: 1006.050778 | O32: 1066.413825 | P32: 1130.398655 | Q32: 1198.222574 | R32: 1270.115928 | S32: 1346.322884 | T32: 1427.102257 | U32: 1512.728393
A33: Valuation | B33: =FV(B31/12,12,-B32,-$G$2,0) -> 6224.963011 | C33: =FV(C31/12,12,-C32,-B33,0) -> 13340.09266 | D33: =FV(D31/12,12,-D32,-C33,0) -> 21441.68221 | E33: 30635.01209 | F33: 41036.20466 | G33: 52772.20118 | H33: 65982.08034 | I33: 80818.1617 | J33: 97447.20656 | K33: 116051.7246 | L33: 136831.3953 | M33: 160004.6146 | N33: 185810.1764 | O33: 214509.1027 | P33: 246386.632 | Q33: 281754.3833 | R33: 320952.7075 | S33: 364353.2443 | T33: 412361.7014 | U33: 465420.8758

Sheet Balances (hidden)
A1: Monthly Annuities | I1: Cumulative Investment Return Calculation
A2: Monthly Annuity Balance & Annual Return on Investment Calculations
I3: Select Month | J3: 2040-07-31 | L3: 0.06438564511
A5: Month | B5: Payment Number | C5: Opening Balance | D5: Annuity Amount | E5: Investment Growth | F5: Closing Balance | G5: Investment Return % | I5: Opening Balance | J5: Investment Return % | K5: Investment Growth | L5: Closing Balance
A6: =DATE(YEAR(ROI!$D$2),MONTH(ROI!$D$2)+1,1-1) -> 2020-08-31 | B6: 1 | C6: =ROI!$G$2 -> 0 | D6: =ROI!B6 -> 500 | E6: =IF(D6=0,0,C6*G6/12) -> 0 | F6: =SUM(C6:E6) -> 500 | G6: =ROI!$B$25 -> 0.07129622978 | I6: =ROI!$G$2 -> 0 | J6: =L3 -> 0.06438564511 | K6: =IF(D6=0,0,C6*J6/12) -> 0 | L6: =SUM(I6,D6,K6) -> 500
A7: =DATE(YEAR(A6),MONTH(A6)+2,1-1) -> 2020-09-30 | B7: 2 | C7: =IF(ROUND(F6,0)>0,F6,0) -> 500 | D7: =ROI!B7 -> 500 | E7: =IF(D7=0,0,C7*G7/12) -> 2.970676241 | F7: =SUM(C7:E7) -> 1002.970676 | G7: =ROI!$B$25 -> 0.07129622978 | I7: =IF(ROUND(L6,0)>0,L6,0) -> 500 | J7: =$J$6 -> 0.06438564511 | K7: =IF(D7=0,0,C7*J7/12) -> 2.682735213 | L7: =SUM(I7,D7,K7) -> 1002.682735
A8: 2020-10-31 | B8: 3 | C8: 1002.970676 | D8: =ROI!B8 -> 500 | E8: 5.959002316 | F8: 1508.929679 | G8: =ROI!$B$25 -> 0.07129622978 | I8: 1002.682735 | J8: =$J$6 -> 0.06438564511 | K8: 5.381409501 | L8: 1508.064145
A9: 2020-11-30 | B9: 4 | C9: 1508.929679 | D9: =ROI!B9 -> 500 | E9: 8.965083091 | F9: 2017.894762 | G9: =ROI!$B$25 -> 0.07129622978 | I9: 1508.064145 | J9: 0.06438564511 | K9: 8.096117565 | L9: 2016.160262
A10: 2020-12-31 | B10: 5 | C10: 2017.894762 | D10: =ROI!B10 -> 500 | E10: 11.98902405 | F10: 2529.883786 | G10: =ROI!$B$25 -> 0.07129622978 | I10: 2016.160262 | J10: 0.06438564511 | K10: 10.82695467 | L10: 2526.987217
A11: 2021-01-31 | B11: 6 | C11: 2529.883786 | D11: =ROI!B11 -> 500 | E11: 15.03093131 | F11: 3044.914717 | G11: =ROI!$B$25 -> 0.07129622978 | I11: 2526.987217 | J11: 0.06438564511 | K11: 13.57401663 | L11: 3040.561234
A12: 2021-02-28 | B12: 7 | C12: 3044.914717 | D12: =ROI!B12 -> 500 | E12: 18.09091161 | F12: 3563.005629 | G12: =ROI!$B$25 -> 0.07129622978 | I12: 3040.561234 | J12: 0.06438564511 | K12: 16.33739986 | L12: 3556.898633
A13: 2021-03-31 | B13: 8 | C13: 3563.005629 | D13: =ROI!B13 -> 500 | E13: 21.16907233 | F13: 4084.174701 | G13: =ROI!$B$25 -> 0.07129622978 | I13: 3556.898633 | J13: 0.06438564511 | K13: 19.11720133 | L13: 4076.015835
A14: 2021-04-30 | B14: 9 | C14: 4084.174701 | D14: =ROI!B14 -> 500 | E14: 24.2655215 | F14: 4608.440222 | G14: =ROI!$B$25 -> 0.07129622978 | I14: 4076.015835 | J14: 0.06438564511 | K14: 21.91351857 | L14: 4597.929353
A15: 2021-05-31 | B15: 10 | C15: 4608.440222 | D15: =ROI!B15 -> 500 | E15: 27.38036775 | F15: 5135.82059 | G15: =ROI!$B$25 -> 0.07129622978 | I15: 4597.929353 | J15: 0.06438564511 | K15: 24.72644972 | L15: 5122.655803
A16: 2021-06-30 | B16: 11 | C16: 5135.82059 | D16: =ROI!B16 -> 500 | E16: 30.51372041 | F16: 5666.334311 | G16: =ROI!$B$25 -> 0.07129622978 | I16: 5122.655803 | J16: 0.06438564511 | K16: 27.55609349 | L16: 5650.211897
A17: 2021-07-31 | B17: 12 | C17: 5666.334311 | D17: =ROI!B17 -> 500 | E17: 33.66568942 | F17: 6200 | G17: =ROI!$B$25 -> 0.07129622978 | I17: 5650.211897 | J17: 0.06438564511 | K17: 30.40254917 | L17: 6180.614446
A18: 2021-08-31 | B18: 13 | C18: 6200 | D18: =ROI!C6 -> 525 | E18: 43.95121122 | F18: 6768.951211 | G18: =ROI!$C$25 -> 0.08506686043 | I18: 6180.614446 | J18: 0.06438564511 | K18: 33.26591664 | L18: 6738.880362
A19: 2021-09-30 | B19: 14 | C19: 6768.951211 | D19: =ROI!C7 -> 525 | E19: 47.98445233 | F19: 7341.935664 | G19: =ROI!$C$25 -> 0.08506686043 | I19: 6738.880362 | J19: 0.06438564511 | K19: 36.31860754 | L19: 7300.19897
A20: 2021-10-31 | B20: 15 | C20: 7341.935664 | D20: =ROI!C8 -> 525 | E20: 52.0462847 | F20: 7918.981948 | G20: =ROI!$C$25 -> 0.08506686043 | I20: 7300.19897 | J20: 0.06438564511 | K20: 39.39293867 | L20: 7864.591909
A21: 2021-11-30 | B21: 16 | C21: 7918.981948 | D21: =ROI!C9 -> 525 | E21: 56.13691101 | F21: 8500.118859 | G21: =ROI!$C$25 -> 0.08506686043 | I21: 7864.591909 | J21: 0.06438564511 | K21: 42.48906345 | L21: 8432.080972
A22: 2021-12-31 | B22: 17 | C22: 8500.118859 | D22: =ROI!C10 -> 525 | E22: 60.25653539 | F22: 9085.375395 | G22: =ROI!$C$25 -> 0.08506686043 | I22: 8432.080972 | J22: 0.06438564511 | K22: 45.60713636 | L22: 9002.688108
A23: 2022-01-31 | B23: 18 | C23: 9085.375395 | D23: =ROI!C11 -> 525 | E23: 64.40536339 | F23: 9674.780758 | G23: =ROI!$C$25 -> 0.08506686043 | I23: 9002.688108 | J23: 0.06438564511 | K23: 48.74731299 | L23: 9576.435421
A24: 2022-02-28 | B24: 19 | C24: 9674.780758 | D24: =ROI!C12 -> 525 | E24: 68.58360204 | F24: 10268.36436 | G24: =ROI!$C$25 -> 0.08506686043 | I24: 9576.435421 | J24: 0.06438564511 | K24: 51.90975003 | L24: 10153.34517
A25: 2022-03-31 | B25: 20 | C25: 10268.36436 | D25: =ROI!C13 -> 525 | E25: 72.79145983 | F25: 10866.15582 | G25: =ROI!$C$25 -> 0.08506686043 | I25: 10153.34517 | J25: 0.06438564511 | K25: 55.0946053 | L25: 10733.43978
A26: 2022-04-30 | B26: 21 | C26: 10866.15582 | D26: =ROI!C14 -> 525 | E26: 77.02914672 | F26: 11468.18497 | G26: =ROI!$C$25 -> 0.08506686043 | I26: 10733.43978 | J26: 0.06438564511 | K26: 58.30203769 | L26: 11316.74181
A27: 2022-05-31 | B27: 22 | C27: 11468.18497 | D27: =ROI!C15 -> 525 | E27: 81.29687417 | F27: 12074.48184 | G27: =ROI!$C$25 -> 0.08506686043 | I27: 11316.74181 | J27: 0.06438564511 | K27: 61.53220728 | L27: 11903.27402
A28: 2022-06-30 | B28: 23 | C28: 12074.48184 | D28: =ROI!C16 -> 525 | E28: 85.59485513 | F28: 12685.0767 | G28: =ROI!$C$25 -> 0.08506686043 | I28: 11903.27402 | J28: 0.06438564511 | K28: 64.78527522 | L28: 12493.0593
A29: 2022-07-31 | B29: 24 | C29: 12685.0767 | D29: =ROI!C17 -> 525 | E29: 89.92330407 | F29: 13300 | G29: =ROI!$C$25 -> 0.08506686043 | I29: 12493.0593 | J29: 0.06438564511 | K29: 68.06140386 | L29: 13086.1207
A30: 2022-08-31 | B30: 25 | C30: 13300 | D30: =ROI!D6 -> 551.25 | E30: 100.2253527 | F30: 13951.47535 | G30: =ROI!$D$25 -> 0.09042888962 | I30: =IF(ROUND(L29,0)>0,L29,0) -> 13086.1207 | J30: 0.06438564511 | K30: 71.36075666 | L30: =SUM(I30,D30,K30) -> 13708.73146
A31: 2022-09-30 | B31: 26 | C31: 13951.47535 | D31: =ROI!D7 -> 551.25 | E31: 105.1347021 | F31: 14607.86005 | G31: =ROI!$D$25 -> 0.09042888962 | I31: 13708.73146 | J31: 0.06438564511 | K31: 74.8562284 | L31: 14334.83769
A32: 2022-10-31 | B32: 27 | C32: 14607.86005 | D32: =ROI!D8 -> 551.25 | E32: 110.081047 | F32: 15269.1911 | G32: =ROI!$D$25 -> 0.09042888962 | I32: 14334.83769 | J32: 0.06438564511 | K32: 78.37804111 | L32: 14964.46573
A33: 2022-11-30 | B33: 28 | C33: 15269.1911 | D33: =ROI!D9 -> 551.25 | E33: 115.0646664 | F33: 15935.50577 | G33: =ROI!$D$25 -> 0.09042888962 | I33: 14964.46573 | J33: 0.06438564511 | K33: 81.92639328 | L33: 15597.64212
A34: 2022-12-31 | B34: 29 | C34: 15935.50577 | D34: =ROI!D10 -> 551.25 | E34: 120.085841 | F34: 16606.84161 | G34: =ROI!$D$25 -> 0.09042888962 | I34: 15597.64212 | J34: 0.06438564511 | K34: 85.50148492 | L34: 16234.39361
A35: 2023-01-31 | B35: 30 | C35: 16606.84161 | D35: =ROI!D11 -> 551.25 | E35: 125.1448539 | F35: 17283.23646 | G35: =ROI!$D$25 -> 0.09042888962 | I35: 16234.39361 | J35: 0.06438564511 | K35: 89.10351752 | L35: 16874.74712
A36: 2023-02-28 | B36: 31 | C36: 17283.23646 | D36: =ROI!D12 -> 551.25 | E36: 130.2419902 | F36: 17964.72845 | G36: =ROI!$D$25 -> 0.09042888962 | I36: 16874.74712 | J36: 0.06438564511 | K36: 92.73269411 | L36: 17518.72982
A37: 2023-03-31 | B37: 32 | C37: 17964.72845 | D37: =ROI!D13 -> 551.25 | E37: 135.3775372 | F37: 18651.35599 | G37: =ROI!$D$25 -> 0.09042888962 | I37: 17518.72982 | J37: 0.06438564511 | K37: 96.38921922 | L37: 18166.36904
A38: 2023-04-30 | B38: 33 | C38: 18651.35599 | D38: =ROI!D14 -> 551.25 | E38: 140.5517843 | F38: 19343.15777 | G38: =ROI!$D$25 -> 0.09042888962 | I38: 18166.36904 | J38: 0.06438564511 | K38: 100.073299 | L38: 18817.69233
A39: 2023-05-31 | B39: 34 | C39: 19343.15777 | D39: =ROI!D15 -> 551.25 | E39: 145.7650233 | F39: 20040.1728 | G39: =ROI!$D$25 -> 0.09042888962 | I39: 18817.69233 | J39: 0.06438564511 | K39: 103.785141 | L39: 19472.72748
A40: 2023-06-30 | B40: 35 | C40: 20040.1728 | D40: =ROI!D16 -> 551.25 | E40: 151.0175478 | F40: 20742.44035 | G40: =ROI!$D$25 -> 0.09042888962 | I40: 19472.72748 | J40: 0.06438564511 | K40: 107.5249545 | L40: 20131.50243
A41: 2023-07-31 | B41: 36 | C41: 20742.44035 | D41: =ROI!D17 -> 551.25 | E41: 156.309654 | F41: 21450 | G41: =ROI!$D$25 -> 0.09042888962 | I41: 20131.50243 | J41: 0.06438564511 | K41: 111.2929502 | L41: 20794.04538
A42: 2023-08-31 | B42: 37 | C42: 21450 | D42: =ROI!E6 -> 584.3 | E42: 122.2851134 | F42: 22156.58511 | G42: =ROI!$E$25 -> 0.06841125225 | I42: 20794.04538 | J42: 0.06438564511 | K42: 115.0893406 | L42: 21493.43472
A43: 2023-09-30 | B43: 38 | C43: 22156.58511 | D43: =ROI!E7 -> 584.3 | E43: 126.3133111 | F43: 22867.19842 | G43: =ROI!$E$25 -> 0.06841125225 | I43: 21493.43472 | J43: 0.06438564511 | K43: 118.8805022 | L43: 22196.61522
A44: 2023-10-31 | B44: 39 | C44: 22867.19842 | D44: =ROI!E8 -> 584.3 | E44: 130.3644733 | F44: 23581.8629 | G44: =ROI!$E$25 -> 0.06841125225 | I44: 22196.61522 | J44: 0.06438564511 | K44: 122.6932769 | L44: 22903.6085
A45: 2023-11-30 | B45: 40 | C45: 23581.8629 | D45: =ROI!E9 -> 584.3 | E45: 134.4387309 | F45: 24300.60163 | G45: =ROI!$E$25 -> 0.06841125225 | I45: 22903.6085 | J45: 0.06438564511 | K45: 126.527788 | L45: 23614.43629
A46: 2023-12-31 | B46: 41 | C46: 24300.60163 | D46: =ROI!E10 -> 584.3 | E46: 138.5362156 | F46: 25023.43784 | G46: =ROI!$E$25 -> 0.06841125225 | I46: 23614.43629 | J46: 0.06438564511 | K46: 130.3841594 | L46: 24329.12045
A47: 2024-01-31 | B47: 42 | C47: 25023.43784 | D47: =ROI!E11 -> 584.3 | E47: 142.6570599 | F47: 25750.3949 | G47: =ROI!$E$25 -> 0.06841125225 | I47: 24329.12045 | J47: 0.06438564511 | K47: 134.2625157 | L47: 25047.68296
A48: 2024-02-29 | B48: 43 | C48: 25750.3949 | D48: =ROI!E12 -> 584.3 | E48: 146.8013968 | F48: 26481.4963 | G48: =ROI!$E$25 -> 0.06841125225 | I48: 25047.68296 | J48: 0.06438564511 | K48: 138.1629823 | L48: 25770.14595
A49: 2024-03-31 | B49: 44 | C49: 26481.4963 | D49: =ROI!E13 -> 584.3 | E49: 150.9693603 | F49: 27216.76566 | G49: =ROI!$E$25 -> 0.06841125225 | I49: 25770.14595 | J49: 0.06438564511 | K49: 142.0856852 | L49: 26496.53163
A50: 2024-04-30 | B50: 45 | C50: 27216.76566 | D50: =ROI!E14 -> 584.3 | E50: 155.1610851 | F50: 27956.22675 | G50: =ROI!$E$25 -> 0.06841125225 | I50: 26496.53163 | J50: 0.06438564511 | K50: 146.0307512 | L50: 27226.86238
A51: 2024-05-31 | B51: 46 | C51: 27956.22675 | D51: =ROI!E15 -> 584.3 | E51: 159.3767067 | F51: 28699.90345 | G51: =ROI!$E$25 -> 0.06841125225 | I51: 27226.86238 | J51: 0.06438564511 | K51: 149.9983078 | L51: 27961.16069
A52: 2024-06-30 | B52: 47 | C52: 28699.90345 | D52: =ROI!E16 -> 584.3 | E52: 163.6163612 | F52: 29447.81981 | G52: =ROI!$E$25 -> 0.06841125225 | I52: 27961.16069 | J52: 0.06438564511 | K52: 153.9884832 | L52: 28699.44917
A53: 2024-07-31 | B53: 48 | C53: 29447.81981 | D53: =ROI!E17 -> 584.3 | E53: 167.8801858 | F53: 30200 | G53: =ROI!$E$25 -> 0.06841125225 | I53: 28699.44917 | J53: 0.06438564511 | K53: 158.0014063 | L53: 29441.75058
A54: 2024-08-31 | B54: 49 | C54: 30200 | D54: =ROI!F6 -> 631.2 | E54: 86.54513918 | F54: 30917.74514 | G54: =ROI!$F$25 -> 0.03438879703 | I54: 29441.75058 | J54: 0.06438564511 | K54: 162.0372069 | L54: 30234.98779
A55: 2024-09-30 | B55: 50 | C55: 30917.74514 | D55: =ROI!F7 -> 631.2 | E55: 88.60200518 | F55: 31637.54714 | G55: =ROI!$F$25 -> 0.03438879703 | I55: 30234.98779 | J55: 0.06438564511 | K55: 165.8882472 | L55: 31032.07603
A56: 2024-10-31 | B56: 51 | C56: 31637.54714 | D56: =ROI!F8 -> 631.2 | E56: 90.6647656 | F56: 32359.41191 | G56: =ROI!$F$25 -> 0.03438879703 | I56: 31032.07603 | J56: 0.06438564511 | K56: 169.7503235 | L56: 31833.02636
A57: 2024-11-30 | B57: 52 | C57: 32359.41191 | D57: =ROI!F9 -> 631.2 | E57: 92.73343734 | F57: 33083.34535 | G57: =ROI!$F$25 -> 0.03438879703 | I57: 31833.02636 | J57: 0.06438564511 | K57: 173.6234676 | L57: 32637.84982
A58: 2024-12-31 | B58: 53 | C58: 33083.34535 | D58: =ROI!F10 -> 631.2 | E58: 94.80803734 | F58: 33809.35338 | G58: =ROI!$F$25 -> 0.03438879703 | I58: 32637.84982 | J58: 0.06438564511 | K58: 177.507711 | L58: 33446.55754
A59: 2025-01-31 | B59: 54 | C59: 33809.35338 | D59: =ROI!F11 -> 631.2 | E59: 96.8885826 | F59: 34537.44197 | G59: =ROI!$F$25 -> 0.03438879703 | I59: 33446.55754 | J59: 0.06438564511 | K59: 181.4030857 | L59: 34259.16062
A60: 2025-02-28 | B60: 55 | C60: 34537.44197 | D60: =ROI!F12 -> 631.2 | E60: 98.97509014 | F60: 35267.61706 | G60: =ROI!$F$25 -> 0.03438879703 | I60: 34259.16062 | J60: 0.06438564511 | K60: 185.3096235 | L60: 35075.67024
A61: 2025-03-31 | B61: 56 | C61: 35267.61706 | D61: =ROI!F13 -> 631.2 | E61: 101.0675771 | F61: 35999.88463 | G61: =ROI!$F$25 -> 0.03438879703 | I61: 35075.67024 | J61: 0.06438564511 | K61: 189.2273563 | L61: 35896.0976
A62: 2025-04-30 | B62: 57 | C62: 35999.88463 | D62: =ROI!F14 -> 631.2 | E62: 103.1660605 | F62: 36734.25069 | G62: =ROI!$F$25 -> 0.03438879703 | I62: 35896.0976 | J62: 0.06438564511 | K62: 193.1563163 | L62: 36720.45392
A63: 2025-05-31 | B63: 58 | C63: 36734.25069 | D63: =ROI!F15 -> 631.2 | E63: 105.2705576 | F63: 37470.72125 | G63: =ROI!$F$25 -> 0.03438879703 | I63: 36720.45392 | J63: 0.06438564511 | K63: 197.0965357 | L63: 37548.75045
A64: 2025-06-30 | B64: 59 | C64: 37470.72125 | D64: =ROI!F16 -> 631.2 | E64: 107.3810856 | F64: 38209.30234 | G64: =ROI!$F$25 -> 0.03438879703 | I64: 37548.75045 | J64: 0.06438564511 | K64: 201.0480467 | L64: 38380.9985
A65: 2025-07-31 | B65: 60 | C65: 38209.30234 | D65: =ROI!F17 -> 631.2 | E65: 109.4976619 | F65: 38950 | G65: =ROI!$F$25 -> 0.03438879703 | I65: 38380.9985 | J65: 0.06438564511 | K65: 205.0108817 | L65: 39217.20938
A66: 2025-08-31 | B66: 61 | C66: 38950 | D66: =ROI!G6 -> 669.1 | E66: 272.9043382 | F66: 39892.00434 | G66: =ROI!$G$25 -> 0.08407835838 | I66: 39217.20938 | J66: 0.06438564511 | K66: 208.9850731 | L66: 40095.29445
A67: 2025-09-30 | B67: 62 | C67: 39892.00434 | D67: =ROI!G7 -> 669.1 | E67: 279.5045198 | F67: 40840.60886 | G67: =ROI!$G$25 -> 0.08407835838 | I67: 40095.29445 | J67: 0.06438564511 | K67: 214.0393695 | L67: 40978.43382
A68: 2025-10-31 | B68: 63 | C68: 40840.60886 | D68: =ROI!G8 -> 669.1 | E68: 286.1509457 | F68: 41795.8598 | G68: =ROI!$G$25 -> 0.08407835838 | I68: 40978.43382 | J68: 0.06438564511 | K68: 219.129079 | L68: 41866.6629
A69: 2025-11-30 | B69: 64 | C69: 41795.8598 | D69: =ROI!G9 -> 669.1 | E69: 292.8439399 | F69: 42757.80374 | G69: =ROI!$G$25 -> 0.08407835838 | I69: 41866.6629 | J69: 0.06438564511 | K69: 224.2544497 | L69: 42760.01735
A70: 2025-12-31 | B70: 65 | C70: 42757.80374 | D70: =ROI!G10 -> 669.1 | E70: 299.5838289 | F70: 43726.48757 | G70: =ROI!$G$25 -> 0.08407835838 | I70: 42760.01735 | J70: 0.06438564511 | K70: 229.4157315 | L70: 43658.53308
A71: =DATE(YEAR(A70),MONTH(A70)+2,1-1) -> 2026-01-31 | B71: 66 | C71: =IF(ROUND(F70,0)>0,F70,0) -> 43726.48757 | D71: =ROI!G11 -> 669.1 | E71: =IF(D71=0,0,C71*G71/12) -> 306.3709411 | F71: =SUM(C71:E71) -> 44701.95851 | G71: =ROI!$G$25 -> 0.08407835838 | I71: 43658.53308 | J71: 0.06438564511 | K71: =IF(D71=0,0,C71*J71/12) -> 234.6131759 | L71: 44562.24626
A72: 2026-02-28 | B72: 67 | C72: 44701.95851 | D72: =ROI!G12 -> 669.1 | E72: 313.2056074 | F72: 45684.26412 | G72: =ROI!$G$25 -> 0.08407835838 | I72: 44562.24626 | J72: =$J$6 -> 0.06438564511 | K72: 239.8470364 | L72: 45471.1933
A73: 2026-03-31 | B73: 68 | C73: 45684.26412 | D73: =ROI!G13 -> 669.1 | E73: 320.0881609 | F73: 46673.45228 | G73: =ROI!$G$25 -> 0.08407835838 | I73: 45471.1933 | J73: 0.06438564511 | K73: 245.1175681 | L73: 46385.41086
A74: 2026-04-30 | B74: 69 | C74: 46673.45228 | D74: =ROI!G14 -> 669.1 | E74: 327.0189373 | F74: 47669.57122 | G74: =ROI!$G$25 -> 0.08407835838 | I74: 46385.41086 | J74: 0.06438564511 | K74: 250.4250279 | L74: 47304.93589
A75: 2026-05-31 | B75: 70 | C75: 47669.57122 | D75: =ROI!G15 -> 669.1 | E75: 333.9982744 | F75: 48672.66949 | G75: =ROI!$G$25 -> 0.08407835838 | I75: 47304.93589 | J75: 0.06438564511 | K75: 255.7696746 | L75: 48229.80557
A76: 2026-06-30 | B76: 71 | C76: 48672.66949 | D76: =ROI!G16 -> 669.1 | E76: 341.0265124 | F76: 49682.79601 | G76: =ROI!$G$25 -> 0.08407835838 | I76: 48229.80557 | J76: 0.06438564511 | K76: 261.1517687 | L76: 49160.05734
A77: 2026-07-31 | B77: 72 | C77: 49682.79601 | D77: =ROI!G17 -> 669.1 | E77: 348.103994 | F77: 50700 | G77: =ROI!$G$25 -> 0.08407835838 | I77: 49160.05734 | J77: 0.06438564511 | K77: 266.5715726 | L77: 50095.72891
A78: 2026-08-31 | B78: 73 | C78: 50700 | D78: =ROI!H6 -> 709.2 | E78: 212.5767107 | F78: 51621.77671 | G78: =ROI!$H$25 -> 0.05031401438 | I78: 50095.72891 | J78: 0.06438564511 | K78: 272.0293506 | L78: 51076.95826
A79: 2026-09-30 | B79: 74 | C79: 51621.77671 | D79: =ROI!H7 -> 709.2 | E79: 216.441568 | F79: 52547.41828 | G79: =ROI!$H$25 -> 0.05031401438 | I79: 51076.95826 | J79: 0.06438564511 | K79: 276.9751163 | L79: 52063.13338
A80: 2026-10-31 | B80: 75 | C80: 52547.41828 | D80: =ROI!H8 -> 709.2 | E80: 220.3226299 | F80: 53476.94091 | G80: =ROI!$H$25 -> 0.05031401438 | I80: 52063.13338 | J80: 0.06438564511 | K80: 281.9416187 | L80: 53054.27499
A81: 2026-11-30 | B81: 76 | C81: 53476.94091 | D81: =ROI!H9 -> 709.2 | E81: 224.2199645 | F81: 54410.36087 | G81: =ROI!$H$25 -> 0.05031401438 | I81: 53054.27499 | J81: 0.06438564511 | K81: 286.9289449 | L81: 54050.40394
A82: 2026-12-31 | B82: 77 | C82: 54410.36087 | D82: =ROI!H10 -> 709.2 | E82: 228.1336399 | F82: 55347.69451 | G82: =ROI!$H$25 -> 0.05031401438 | I82: 54050.40394 | J82: 0.06438564511 | K82: 291.9371821 | L82: 55051.54112
A83: 2027-01-31 | B83: 78 | C83: 55347.69451 | D83: =ROI!H11 -> 709.2 | E83: 232.0637248 | F83: 56288.95824 | G83: =ROI!$H$25 -> 0.05031401438 | I83: 55051.54112 | J83: 0.06438564511 | K83: 296.966418 | L83: 56057.70754
A84: 2027-02-28 | B84: 79 | C84: 56288.95824 | D84: =ROI!H12 -> 709.2 | E84: 236.0102878 | F84: 57234.16853 | G84: =ROI!$H$25 -> 0.05031401438 | I84: 56057.70754 | J84: 0.06438564511 | K84: 302.0167407 | L84: 57068.92428
A85: 2027-03-31 | B85: 80 | C85: 57234.16853 | D85: =ROI!H13 -> 709.2 | E85: 239.9733982 | F85: 58183.34192 | G85: =ROI!$H$25 -> 0.05031401438 | I85: 57068.92428 | J85: 0.06438564511 | K85: 307.0882386 | L85: 58085.21252
A86: 2027-04-30 | B86: 81 | C86: 58183.34192 | D86: =ROI!H14 -> 709.2 | E86: 243.9531252 | F86: 59136.49505 | G86: =ROI!$H$25 -> 0.05031401438 | I86: 58085.21252 | J86: 0.06438564511 | K86: 312.1810004 | L86: 59106.59352
A87: 2027-05-31 | B87: 82 | C87: 59136.49505 | D87: =ROI!H15 -> 709.2 | E87: 247.9495385 | F87: 60093.64459 | G87: =ROI!$H$25 -> 0.05031401438 | I87: 59106.59352 | J87: 0.06438564511 | K87: 317.2951153 | L87: 60133.08863
A88: 2027-06-30 | B88: 83 | C88: 60093.64459 | D88: =ROI!H16 -> 709.2 | E88: 251.9627081 | F88: 61054.8073 | G88: =ROI!$H$25 -> 0.05031401438 | I88: 60133.08863 | J88: 0.06438564511 | K88: 322.4306728 | L88: 61164.71931
A89: 2027-07-31 | B89: 84 | C89: 61054.8073 | D89: =ROI!H17 -> 709.2 | E89: 255.9927043 | F89: 62020 | G89: =ROI!$H$25 -> 0.05031401438 | I89: 61164.71931 | J89: 0.06438564511 | K89: 327.5877629 | L89: 62201.50707
A90: 2027-08-31 | B90: 85 | C90: 62020 | D90: =ROI!I6 -> 751.8 | E90: 330.8617096 | F90: 63102.66171 | G90: =ROI!$I$25 -> 0.06401709956 | I90: 62201.50707 | J90: 0.06438564511 | K90: 332.7664758 | L90: 63286.07355
A91: 2027-09-30 | B91: 86 | C91: 63102.66171 | D91: =ROI!I7 -> 751.8 | E91: 336.6374481 | F91: 64191.09916 | G91: =ROI!$I$25 -> 0.06401709956 | I91: 63286.07355 | J91: 0.06438564511 | K91: 338.5754652 | L91: 64376.44901
A92: 2027-10-31 | B92: 87 | C92: 64191.09916 | D92: =ROI!I8 -> 751.8 | E92: 342.4439988 | F92: 65285.34316 | G92: =ROI!$I$25 -> 0.06401709956 | I92: 64376.44901 | J92: 0.06438564511 | K92: 344.4154441 | L92: 65472.66446
A93: 2027-11-30 | B93: 88 | C93: 65285.34316 | D93: =ROI!I9 -> 751.8 | E93: 348.281526 | F93: 66385.42468 | G93: =ROI!$I$25 -> 0.06401709956 | I93: 65472.66446 | J93: 0.06438564511 | K93: 350.2865779 | L93: 66574.75103
A94: 2027-12-31 | B94: 89 | C94: 66385.42468 | D94: =ROI!I10 -> 751.8 | E94: 354.1501951 | F94: 67491.37488 | G94: =ROI!$I$25 -> 0.06401709956 | I94: =IF(ROUND(L93,0)>0,L93,0) -> 66574.75103 | J94: 0.06438564511 | K94: 356.1890328 | L94: =SUM(I94,D94,K94) -> 67682.74007
A95: 2028-01-31 | B95: 90 | C95: 67491.37488 | D95: =ROI!I11 -> 751.8 | E95: 360.0501721 | F95: 68603.22505 | G95: =ROI!$I$25 -> 0.06401709956 | I95: 67682.74007 | J95: 0.06438564511 | K95: 362.1229759 | L95: 68796.66304
A96: 2028-02-29 | B96: 91 | C96: 68603.22505 | D96: =ROI!I12 -> 751.8 | E96: 365.981624 | F96: 69721.00667 | G96: =ROI!$I$25 -> 0.06401709956 | I96: 68796.66304 | J96: 0.06438564511 | K96: 368.0885751 | L96: 69916.55162
A97: 2028-03-31 | B97: 92 | C97: 69721.00667 | D97: =ROI!I13 -> 751.8 | E97: 371.9447188 | F97: 70844.75139 | G97: =ROI!$I$25 -> 0.06401709956 | I97: 69916.55162 | J97: 0.06438564511 | K97: 374.0859994 | L97: 71042.43762
A98: 2028-04-30 | B98: 93 | C98: 70844.75139 | D98: =ROI!I14 -> 751.8 | E98: 377.9396253 | F98: 71974.49102 | G98: =ROI!$I$25 -> 0.06401709956 | I98: 71042.43762 | J98: 0.06438564511 | K98: 380.1154184 | L98: 72174.35303
A99: 2028-05-31 | B99: 94 | C99: 71974.49102 | D99: =ROI!I15 -> 751.8 | E99: 383.9665131 | F99: 73110.25753 | G99: =ROI!$I$25 -> 0.06401709956 | I99: 72174.35303 | J99: 0.06438564511 | K99: 386.177003 | L99: 73312.33004
A100: 2028-06-30 | B100: 95 | C100: 73110.25753 | D100: =ROI!I16 -> 751.8 | E100: 390.0255529 | F100: 74252.08308 | G100: =ROI!$I$25 -> 0.06401709956 | I100: 73312.33004 | J100: 0.06438564511 | K100: 392.2709246 | L100: 74456.40096
A101: 2028-07-31 | B101: 96 | C101: 74252.08308 | D101: =ROI!I17 -> 751.8 | E101: 396.1169163 | F101: 75400 | G101: =ROI!$I$25 -> 0.06401709956 | I101: 74456.40096 | J101: 0.06438564511 | K101: 398.3973558 | L101: 75606.59832
A102: 2028-08-31 | B102: 97 | C102: 75400 | D102: =ROI!J6 -> 796.9 | E102: 250.4219959 | F102: 76447.322 | G102: =ROI!$J$25 -> 0.03985495956 | I102: 75606.59832 | J102: 0.06438564511 | K102: 404.5564701 | L102: 76808.05479
A103: 2028-09-30 | B103: 98 | C103: 76447.322 | D103: =ROI!J7 -> 796.9 | E103: 253.9004106 | F103: 77498.12241 | G103: =ROI!$J$25 -> 0.03985495956 | I103: 76808.05479 | J103: 0.06438564511 | K103: 410.1758453 | L103: 78015.13063
A104: 2028-10-31 | B104: 99 | C104: 77498.12241 | D104: =ROI!J8 -> 796.9 | E104: 257.3903779 | F104: 78552.41278 | G104: =ROI!$J$25 -> 0.03985495956 | I104: 78015.13063 | J104: 0.06438564511 | K104: 415.8138838 | L104: 79227.84452
A105: 2028-11-30 | B105: 100 | C105: 78552.41278 | D105: =ROI!J9 -> 796.9 | E105: 260.8919363 | F105: 79610.20472 | G105: =ROI!$J$25 -> 0.03985495956 | I105: 79227.84452 | J105: 0.06438564511 | K105: 421.4706477 | L105: 80446.21516
A106: 2028-12-31 | B106: 101 | C106: 79610.20472 | D106: =ROI!J10 -> 796.9 | E106: 264.4051242 | F106: 80671.50984 | G106: =ROI!$J$25 -> 0.03985495956 | I106: 80446.21516 | J106: 0.06438564511 | K106: 427.146199 | L106: 81670.26136
A107: 2029-01-31 | B107: 102 | C107: 80671.50984 | D107: =ROI!J11 -> 796.9 | E107: 267.9299802 | F107: 81736.33983 | G107: =ROI!$J$25 -> 0.03985495956 | I107: 81670.26136 | J107: 0.06438564511 | K107: 432.8406003 | L107: 82900.00196
A108: 2029-02-28 | B108: 103 | C108: 81736.33983 | D108: =ROI!J12 -> 796.9 | E108: 271.4665432 | F108: 82804.70637 | G108: =ROI!$J$25 -> 0.03985495956 | I108: 82900.00196 | J108: 0.06438564511 | K108: 438.553914 | L108: 84135.45588
A109: 2029-03-31 | B109: 104 | C109: 82804.70637 | D109: =ROI!J13 -> 796.9 | E109: 275.014852 | F109: 83876.62122 | G109: =ROI!$J$25 -> 0.03985495956 | I109: 84135.45588 | J109: 0.06438564511 | K109: 444.2862031 | L109: 85376.64208
A110: 2029-04-30 | B110: 105 | C110: 83876.62122 | D110: =ROI!J14 -> 796.9 | E110: 278.5749456 | F110: 84952.09617 | G110: =ROI!$J$25 -> 0.03985495956 | I110: 85376.64208 | J110: 0.06438564511 | K110: 450.0375306 | L110: 86623.57961
A111: 2029-05-31 | B111: 106 | C111: 84952.09617 | D111: =ROI!J15 -> 796.9 | E111: 282.1468631 | F111: 86031.14303 | G111: =ROI!$J$25 -> 0.03985495956 | I111: 86623.57961 | J111: 0.06438564511 | K111: 455.8079596 | L111: 87876.28757
A112: 2029-06-30 | B112: 107 | C112: 86031.14303 | D112: =ROI!J16 -> 796.9 | E112: 285.7306439 | F112: 87113.77367 | G112: =ROI!$J$25 -> 0.03985495956 | I112: 87876.28757 | J112: 0.06438564511 | K112: 461.5975536 | L112: 89134.78513
A113: 2029-07-31 | B113: 108 | C113: 87113.77367 | D113: =ROI!J17 -> 796.9 | E113: 289.3263273 | F113: 88200 | G113: =ROI!$J$25 -> 0.03985495956 | I113: 89134.78513 | J113: 0.06438564511 | K113: 467.4063763 | L113: 90399.0915
A114: 2029-08-31 | B114: 109 | C114: 88200 | D114: =ROI!K6 -> 844.7 | E114: 177.2608813 | F114: 89221.96088 | G114: =ROI!$K$25 -> 0.0241171267 | I114: 90399.0915 | J114: 0.06438564511 | K114: 473.2344916 | L114: 91717.02599
A115: 2029-09-30 | B115: 110 | C115: 89221.96088 | D115: =ROI!K7 -> 844.7 | E115: 179.3147779 | F115: 90245.97566 | G115: =ROI!$K$25 -> 0.0241171267 | I115: 91717.02599 | J115: 0.06438564511 | K115: 478.7177924 | L115: 93040.44379
A116: 2029-10-31 | B116: 111 | C116: 90245.97566 | D116: =ROI!K8 -> 844.7 | E116: 181.3728024 | F116: 91272.04846 | G116: =ROI!$K$25 -> 0.0241171267 | I116: 93040.44379 | J116: 0.06438564511 | K116: 484.2121134 | L116: 94369.3559
A117: 2029-11-30 | B117: 112 | C117: 91272.04846 | D117: =ROI!K9 -> 844.7 | E117: 183.4349631 | F117: 92300.18342 | G117: =ROI!$K$25 -> 0.0241171267 | I117: 94369.3559 | J117: 0.06438564511 | K117: 489.7174767 | L117: 95703.77338
A118: 2029-12-31 | B118: 113 | C118: 92300.18342 | D118: =ROI!K10 -> 844.7 | E118: 185.5012682 | F118: 93330.38469 | G118: =ROI!$K$25 -> 0.0241171267 | I118: 95703.77338 | J118: 0.06438564511 | K118: 495.2339045 | L118: 97043.70728
A119: 2030-01-31 | B119: 114 | C119: 93330.38469 | D119: =ROI!K11 -> 844.7 | E119: 187.5717261 | F119: 94362.65642 | G119: =ROI!$K$25 -> 0.0241171267 | I119: 97043.70728 | J119: 0.06438564511 | K119: 500.7614189 | L119: 98389.1687
A120: 2030-02-28 | B120: 115 | C120: 94362.65642 | D120: =ROI!K12 -> 844.7 | E120: 189.6463451 | F120: 95397.00276 | G120: =ROI!$K$25 -> 0.0241171267 | I120: 98389.1687 | J120: 0.06438564511 | K120: 506.3000423 | L120: 99740.16874
A121: 2030-03-31 | B121: 116 | C121: 95397.00276 | D121: =ROI!K13 -> 844.7 | E121: 191.7251336 | F121: 96433.4279 | G121: =ROI!$K$25 -> 0.0241171267 | I121: 99740.16874 | J121: 0.06438564511 | K121: 511.849797 | L121: 101096.7185
A122: 2030-04-30 | B122: 117 | C122: 96433.4279 | D122: =ROI!K14 -> 844.7 | E122: 193.8080999 | F122: 97471.936 | G122: =ROI!$K$25 -> 0.0241171267 | I122: 101096.7185 | J122: 0.06438564511 | K122: 517.4107054 | L122: 102458.8292
A123: 2030-05-31 | B123: 118 | C123: 97471.936 | D123: =ROI!K15 -> 844.7 | E123: 195.8952525 | F123: 98512.53125 | G123: =ROI!$K$25 -> 0.0241171267 | I123: 102458.8292 | J123: 0.06438564511 | K123: 522.9827899 | L123: 103826.512
A124: 2030-06-30 | B124: 119 | C124: 98512.53125 | D124: =ROI!K16 -> 844.7 | E124: 197.9865998 | F124: 99555.21785 | G124: =ROI!$K$25 -> 0.0241171267 | I124: 103826.512 | J124: 0.06438564511 | K124: 528.566073 | L124: 105199.7781
A125: 2030-07-31 | B125: 120 | C125: 99555.21785 | D125: =ROI!K17 -> 844.7 | E125: 200.0821502 | F125: 100600 | G125: =ROI!$K$25 -> 0.0241171267 | I125: 105199.7781 | J125: 0.06438564511 | K125: 534.1605771 | L125: 106578.6387
A126: 2030-08-31 | B126: 121 | C126: 100600 | D126: =ROI!L6 -> 895.4 | E126: 556.2915398 | F126: 102051.6915 | G126: =ROI!$L$25 -> 0.06635684371 | I126: 106578.6387 | J126: 0.06438564511 | K126: 539.7663248 | L126: 108013.805
A127: 2030-09-30 | B127: 122 | C127: 102051.6915 | D127: =ROI!L7 -> 895.4 | E127: 564.3190122 | F127: 103511.4106 | G127: =ROI!$L$25 -> 0.06635684371 | I127: 108013.805 | J127: 0.06438564511 | K127: 547.5553329 | L127: 109456.7603
A128: 2030-10-31 | B128: 123 | C128: 103511.4106 | D128: =ROI!L8 -> 895.4 | E128: 572.3908744 | F128: 104979.2014 | G128: =ROI!$L$25 -> 0.06635684371 | I128: 109456.7603 | J128: 0.06438564511 | K128: 555.3874121 | L128: 110907.5478
A129: 2030-11-30 | B129: 124 | C129: 104979.2014 | D129: =ROI!L9 -> 895.4 | E129: 580.5073718 | F129: 106455.1088 | G129: =ROI!$L$25 -> 0.06635684371 | I129: 110907.5478 | J129: 0.06438564511 | K129: 563.2628006 | L129: 112366.2106
A130: 2030-12-31 | B130: 125 | C130: 106455.1088 | D130: =ROI!L10 -> 895.4 | E130: 588.6687514 | F130: 107939.1775 | G130: =ROI!$L$25 -> 0.06635684371 | I130: 112366.2106 | J130: 0.06438564511 | K130: 571.1817379 | L130: 113832.7923
A131: 2031-01-31 | B131: 126 | C131: 107939.1775 | D131: =ROI!L11 -> 895.4 | E131: 596.8752613 | F131: 109431.4528 | G131: =ROI!$L$25 -> 0.06635684371 | I131: 113832.7923 | J131: 0.06438564511 | K131: 579.1444649 | L131: 115307.3368
A132: 2031-02-28 | B132: 127 | C132: 109431.4528 | D132: =ROI!L12 -> 895.4 | E132: 605.127151 | F132: 110931.98 | G132: =ROI!$L$25 -> 0.06635684371 | I132: 115307.3368 | J132: 0.06438564511 | K132: 587.1512237 | L132: 116789.888
A133: 2031-03-31 | B133: 128 | C133: 110931.98 | D133: =ROI!L13 -> 895.4 | E133: 613.4246714 | F133: 112440.8046 | G133: =ROI!$L$25 -> 0.06635684371 | I133: 116789.888 | J133: 0.06438564511 | K133: 595.2022578 | L133: 118280.4902
A134: 2031-04-30 | B134: 129 | C134: 112440.8046 | D134: =ROI!L14 -> 895.4 | E134: 621.768075 | F134: 113957.9727 | G134: =ROI!$L$25 -> 0.06635684371 | I134: 118280.4902 | J134: 0.06438564511 | K134: 603.2978119 | L134: 119779.1881
A135: =DATE(YEAR(A134),MONTH(A134)+2,1-1) -> 2031-05-31 | B135: 130 | C135: =IF(ROUND(F134,0)>0,F134,0) -> 113957.9727 | D135: =ROI!L15 -> 895.4 | E135: =IF(D135=0,0,C135*G135/12) -> 630.1576154 | F135: =SUM(C135:E135) -> 115483.5303 | G135: =ROI!$L$25 -> 0.06635684371 | I135: 119779.1881 | J135: 0.06438564511 | K135: =IF(D135=0,0,C135*J135/12) -> 611.4381324 | L135: 121286.0262
A136: 2031-06-30 | B136: 131 | C136: 115483.5303 | D136: =ROI!L16 -> 895.4 | E136: 638.5935478 | F136: 117017.5239 | G136: =ROI!$L$25 -> 0.06635684371 | I136: 121286.0262 | J136: =$J$6 -> 0.06438564511 | K136: 619.6234666 | L136: 122801.0496
A137: 2031-07-31 | B137: 132 | C137: 117017.5239 | D137: =ROI!L17 -> 895.4 | E137: 647.0761286 | F137: 118560 | G137: =ROI!$L$25 -> 0.06635684371 | I137: 122801.0496 | J137: 0.06438564511 | K137: 627.8540636 | L137: 124324.3037
A138: 2031-08-31 | B138: 133 | C138: 118560 | D138: =ROI!M6 -> 949.1 | E138: 866.1555263 | F138: 120375.2555 | G138: =ROI!$M$25 -> 0.08766756339 | I138: 124324.3037 | J138: 0.06438564511 | K138: 636.1301737 | L138: 125909.5339
A139: 2031-09-30 | B139: 134 | C139: 120375.2555 | D139: =ROI!M7 -> 949.1 | E139: 879.4171121 | F139: 122203.7726 | G139: =ROI!$M$25 -> 0.08766756339 | I139: 125909.5339 | J139: 0.06438564511 | K139: 645.8698735 | L139: 127504.5038
A140: 2031-10-31 | B140: 135 | C140: 122203.7726 | D140: =ROI!M8 -> 949.1 | E140: 892.7755821 | F140: 124045.6482 | G140: =ROI!$M$25 -> 0.08766756339 | I140: 127504.5038 | J140: 0.06438564511 | K140: 655.680728 | L140: 129109.2845
A141: 2031-11-30 | B141: 136 | C141: 124045.6482 | D141: =ROI!M9 -> 949.1 | E141: 906.2316441 | F141: 125900.9799 | G141: =ROI!$M$25 -> 0.08766756339 | I141: 129109.2845 | J141: 0.06438564511 | K141: 665.563257 | L141: 130723.9477
A142: 2031-12-31 | B142: 137 | C142: 125900.9799 | D142: =ROI!M10 -> 949.1 | E142: 919.7860111 | F142: 127769.8659 | G142: =ROI!$M$25 -> 0.08766756339 | I142: 130723.9477 | J142: 0.06438564511 | K142: 675.517984 | L142: 132348.5657
A143: 2032-01-31 | B143: 138 | C143: 127769.8659 | D143: =ROI!M11 -> 949.1 | E143: 933.4394014 | F143: 129652.4053 | G143: =ROI!$M$25 -> 0.08766756339 | I143: 132348.5657 | J143: 0.06438564511 | K143: 685.5454367 | L143: 133983.2112
A144: 2032-02-29 | B144: 139 | C144: 129652.4053 | D144: =ROI!M12 -> 949.1 | E144: 947.1925382 | F144: 131548.6978 | G144: =ROI!$M$25 -> 0.08766756339 | I144: 133983.2112 | J144: 0.06438564511 | K144: 695.6461462 | L144: 135627.9573
A145: 2032-03-31 | B145: 140 | C145: 131548.6978 | D145: =ROI!M13 -> 949.1 | E145: 961.0461504 | F145: 133458.844 | G145: =ROI!$M$25 -> 0.08766756339 | I145: 135627.9573 | J145: 0.06438564511 | K145: 705.8206477 | L145: 137282.878
A146: 2032-04-30 | B146: 141 | C146: 133458.844 | D146: =ROI!M14 -> 949.1 | E146: 975.000972 | F146: 135382.9449 | G146: =ROI!$M$25 -> 0.08766756339 | I146: 137282.878 | J146: 0.06438564511 | K146: 716.0694804 | L146: 138948.0474
A147: 2032-05-31 | B147: 142 | C147: 135382.9449 | D147: =ROI!M15 -> 949.1 | E147: 989.0577423 | F147: 137321.1027 | G147: =ROI!$M$25 -> 0.08766756339 | I147: 138948.0474 | J147: 0.06438564511 | K147: 726.3931872 | L147: 140623.5406
A148: 2032-06-30 | B148: 143 | C148: 137321.1027 | D148: =ROI!M16 -> 949.1 | E148: 1003.217206 | F148: 139273.4199 | G148: =ROI!$M$25 -> 0.08766756339 | I148: 140623.5406 | J148: 0.06438564511 | K148: 736.7923153 | L148: 142309.4329
A149: 2032-07-31 | B149: 144 | C149: 139273.4199 | D149: =ROI!M17 -> 949.1 | E149: 1017.480114 | F149: 141240 | G149: =ROI!$M$25 -> 0.08766756339 | I149: 142309.4329 | J149: 0.06438564511 | K149: 747.2674155 | L149: 144005.8004
A150: 2032-08-31 | B150: 145 | C150: 141240 | D150: =ROI!N6 -> 1006.05 | E150: 353.4169497 | F150: 142599.4669 | G150: =ROI!$N$25 -> 0.03002692861 | I150: 144005.8004 | J150: 0.06438564511 | K150: 757.8190429 | L150: 145769.6694
A151: 2032-09-30 | B151: 146 | C151: 142599.4669 | D151: =ROI!N7 -> 1006.05 | E151: 356.8186678 | F151: 143962.3356 | G151: =ROI!$N$25 -> 0.03002692861 | I151: 145769.6694 | J151: 0.06438564511 | K151: 765.1132227 | L151: 147540.8326
A152: 2032-10-31 | B152: 147 | C152: 143962.3356 | D152: =ROI!N8 -> 1006.05 | E152: 360.2288978 | F152: 145328.6145 | G152: =ROI!$N$25 -> 0.03002692861 | I152: 147540.8326 | J152: 0.06438564511 | K152: 772.4256542 | L152: 149319.3083
A153: 2032-11-30 | B153: 148 | C153: 145328.6145 | D153: =ROI!N9 -> 1006.05 | E153: 363.6476611 | F153: 146698.3122 | G153: =ROI!$N$25 -> 0.03002692861 | I153: 149319.3083 | J153: 0.06438564511 | K153: 779.7563832 | L153: 151105.1147
A154: 2032-12-31 | B154: 149 | C154: 146698.3122 | D154: =ROI!N10 -> 1006.05 | E154: 367.0749789 | F154: 148071.4372 | G154: =ROI!$N$25 -> 0.03002692861 | I154: 151105.1147 | J154: 0.06438564511 | K154: 787.1054555 | L154: 152898.2701
A155: 2033-01-31 | B155: 150 | C155: 148071.4372 | D155: =ROI!N11 -> 1006.05 | E155: 370.5108727 | F155: 149447.998 | G155: =ROI!$N$25 -> 0.03002692861 | I155: 152898.2701 | J155: 0.06438564511 | K155: 794.472917 | L155: 154698.793
A156: 2033-02-28 | B156: 151 | C156: 149447.998 | D156: =ROI!N12 -> 1006.05 | E156: 373.955364 | F156: 150828.0034 | G156: =ROI!$N$25 -> 0.03002692861 | I156: 154698.793 | J156: 0.06438564511 | K156: 801.8588136 | L156: 156506.7018
A157: 2033-03-31 | B157: 152 | C157: 150828.0034 | D157: =ROI!N13 -> 1006.05 | E157: 377.4084742 | F157: 152211.4619 | G157: =ROI!$N$25 -> 0.03002692861 | I157: 156506.7018 | J157: 0.06438564511 | K157: 809.2631916 | L157: 158322.015
A158: 2033-04-30 | B158: 153 | C158: 152211.4619 | D158: =ROI!N14 -> 1006.05 | E158: 380.8702249 | F158: 153598.3821 | G158: =ROI!$N$25 -> 0.03002692861 | I158: =IF(ROUND(L157,0)>0,L157,0) -> 158322.015 | J158: 0.06438564511 | K158: 816.6860971 | L158: =SUM(I158,D158,K158) -> 160144.7511
A159: 2033-05-31 | B159: 154 | C159: 153598.3821 | D159: =ROI!N15 -> 1006.05 | E159: 384.3406378 | F159: 154988.7727 | G159: =ROI!$N$25 -> 0.03002692861 | I159: 160144.7511 | J159: 0.06438564511 | K159: 824.1275766 | L159: 161974.9287
A160: 2033-06-30 | B160: 155 | C160: 154988.7727 | D160: =ROI!N16 -> 1006.05 | E160: 387.8197345 | F160: 156382.6425 | G160: =ROI!$N$25 -> 0.03002692861 | I160: 161974.9287 | J160: 0.06438564511 | K160: 831.5876764 | L160: 163812.5664
A161: 2033-07-31 | B161: 156 | C161: 156382.6425 | D161: =ROI!N17 -> 1006.05 | E161: 391.3075367 | F161: 157780 | G161: =ROI!$N$25 -> 0.03002692861 | I161: 163812.5664 | J161: 0.06438564511 | K161: 839.0664432 | L161: 165657.6828
A162: 2033-08-31 | B162: 157 | C162: 157780 | D162: =ROI!O6 -> 1066.4 | E162: 808.2076904 | F162: 159654.6077 | G162: =ROI!$O$25 -> 0.06146845155 | I162: 165657.6828 | J162: 0.06438564511 | K162: 846.5639238 | L162: 167570.6468
A163: 2033-09-30 | B163: 158 | C163: 159654.6077 | D163: =ROI!O7 -> 1066.4 | E163: 817.8101264 | F163: 161538.8178 | G163: =ROI!$O$25 -> 0.06146845155 | I163: 167570.6468 | J163: 0.06438564511 | K163: 856.6220759 | L163: 169493.6688
A164: 2033-10-31 | B164: 159 | C164: 161538.8178 | D164: =ROI!O8 -> 1066.4 | E164: 827.4617497 | F164: 163432.6796 | G164: =ROI!$O$25 -> 0.06146845155 | I164: 169493.6688 | J164: 0.06438564511 | K164: 866.7317496 | L164: 171426.8006
A165: 2033-11-30 | B165: 160 | C165: 163432.6796 | D165: =ROI!O9 -> 1066.4 | E165: 837.1628121 | F165: 165336.2424 | G165: =ROI!$O$25 -> 0.06146845155 | I165: 171426.8006 | J165: 0.06438564511 | K165: 876.8932088 | L165: 173370.0938
A166: 2033-12-31 | B166: 161 | C166: 165336.2424 | D166: =ROI!O10 -> 1066.4 | E166: 846.913567 | F166: 167249.5559 | G166: =ROI!$O$25 -> 0.06146845155 | I166: 173370.0938 | J166: 0.06438564511 | K166: 887.1067188 | L166: 175323.6005
A167: 2034-01-31 | B167: 162 | C167: 167249.5559 | D167: =ROI!O11 -> 1066.4 | E167: 856.7142688 | F167: 169172.6702 | G167: =ROI!$O$25 -> 0.06146845155 | I167: 175323.6005 | J167: 0.06438564511 | K167: 897.3725462 | L167: 177287.3731
A168: 2034-02-28 | B168: 163 | C168: 169172.6702 | D168: =ROI!O12 -> 1066.4 | E168: 866.5651735 | F168: 171105.6354 | G168: =ROI!$O$25 -> 0.06146845155 | I168: 177287.3731 | J168: 0.06438564511 | K168: 907.6909589 | L168: 179261.464
A169: 2034-03-31 | B169: 164 | C169: 171105.6354 | D169: =ROI!O13 -> 1066.4 | E169: 876.4665382 | F169: 173048.5019 | G169: =ROI!$O$25 -> 0.06146845155 | I169: 179261.464 | J169: 0.06438564511 | K169: 918.0622264 | L169: 181245.9262
A170: 2034-04-30 | B170: 165 | C170: 173048.5019 | D170: =ROI!O14 -> 1066.4 | E170: 886.4186213 | F170: 175001.3205 | G170: =ROI!$O$25 -> 0.06146845155 | I170: 181245.9262 | J170: 0.06438564511 | K170: 928.4866193 | L170: 183240.8129
A171: 2034-05-31 | B171: 166 | C171: 175001.3205 | D171: =ROI!O15 -> 1066.4 | E171: 896.4216827 | F171: 176964.1422 | G171: =ROI!$O$25 -> 0.06146845155 | I171: 183240.8129 | J171: 0.06438564511 | K171: 938.9644099 | L171: 185246.1773
A172: 2034-06-30 | B172: 167 | C172: 176964.1422 | D172: =ROI!O16 -> 1066.4 | E172: 906.4759835 | F172: 178937.0182 | G172: =ROI!$O$25 -> 0.06146845155 | I172: 185246.1773 | J172: 0.06438564511 | K172: 949.4958716 | L172: 187262.0731
A173: 2034-07-31 | B173: 168 | C173: 178937.0182 | D173: =ROI!O17 -> 1066.4 | E173: 916.5817862 | F173: 180920 | G173: =ROI!$O$25 -> 0.06146845155 | I173: 187262.0731 | J173: 0.06438564511 | K173: 960.0812793 | L173: 189288.5544
A174: 2034-08-31 | B174: 169 | C174: 180920 | D174: =ROI!P6 -> 1130.4 | E174: 1237.61051 | F174: 183288.0105 | G174: =ROI!$P$25 -> 0.08208780745 | I174: 189288.5544 | J174: 0.06438564511 | K174: 970.7209094 | L174: 191389.6753
A175: 2034-09-30 | B175: 170 | C175: 183288.0105 | D175: =ROI!P7 -> 1130.4 | E175: 1253.809243 | F175: 185672.2198 | G175: =ROI!$P$25 -> 0.08208780745 | I175: 191389.6753 | J175: 0.06438564511 | K175: 983.4263998 | L175: 193503.5017
A176: 2034-10-31 | B176: 171 | C176: 185672.2198 | D176: =ROI!P8 -> 1130.4 | E176: 1270.118785 | F176: 188072.7385 | G176: =ROI!$P$25 -> 0.08208780745 | I176: 193503.5017 | J176: 0.06438564511 | K176: 996.218804 | L176: 195630.1205
A177: 2034-11-30 | B177: 172 | C177: 188072.7385 | D177: =ROI!P9 -> 1130.4 | E177: 1286.539896 | F177: 190489.6784 | G177: =ROI!$P$25 -> 0.08208780745 | I177: 195630.1205 | J177: 0.06438564511 | K177: 1009.098717 | L177: 197769.6193
A178: 2034-12-31 | B178: 173 | C178: 190489.6784 | D178: =ROI!P10 -> 1130.4 | E178: 1303.073337 | F178: 192923.1518 | G178: =ROI!$P$25 -> 0.08208780745 | I178: 197769.6193 | J178: 0.06438564511 | K178: 1022.066736 | L178: 199922.086
A179: 2035-01-31 | B179: 174 | C179: 192923.1518 | D179: =ROI!P11 -> 1130.4 | E179: 1319.719878 | F179: 195373.2716 | G179: =ROI!$P$25 -> 0.08208780745 | I179: 199922.086 | J179: 0.06438564511 | K179: 1035.123465 | L179: 202087.6095
A180: 2035-02-28 | B180: 175 | C180: 195373.2716 | D180: =ROI!P12 -> 1130.4 | E180: 1336.480292 | F180: 197840.1519 | G180: =ROI!$P$25 -> 0.08208780745 | I180: 202087.6095 | J180: 0.06438564511 | K180: 1048.269511 | L180: 204266.279
A181: 2035-03-31 | B181: 176 | C181: 197840.1519 | D181: =ROI!P13 -> 1130.4 | E181: 1353.355358 | F181: 200323.9073 | G181: =ROI!$P$25 -> 0.08208780745 | I181: 204266.279 | J181: 0.06438564511 | K181: 1061.505484 | L181: 206458.1844
A182: 2035-04-30 | B182: 177 | C182: 200323.9073 | D182: =ROI!P14 -> 1130.4 | E182: 1370.345861 | F182: 202824.6532 | G182: =ROI!$P$25 -> 0.08208780745 | I182: 206458.1844 | J182: 0.06438564511 | K182: 1074.832 | L182: 208663.4164
A183: 2035-05-31 | B183: 178 | C183: 202824.6532 | D183: =ROI!P15 -> 1130.4 | E183: 1387.45259 | F183: 205342.5058 | G183: =ROI!$P$25 -> 0.08208780745 | I183: 208663.4164 | J183: 0.06438564511 | K183: 1088.249678 | L183: 210882.0661
A184: 2035-06-30 | B184: 179 | C184: 205342.5058 | D184: =ROI!P16 -> 1130.4 | E184: 1404.676339 | F184: 207877.5821 | G184: =ROI!$P$25 -> 0.08208780745 | I184: 210882.0661 | J184: 0.06438564511 | K184: 1101.759142 | L184: 213114.2253
A185: 2035-07-31 | B185: 180 | C185: 207877.5821 | D185: =ROI!P17 -> 1130.4 | E185: 1422.017911 | F185: 210430 | G185: =ROI!$P$25 -> 0.08208780745 | I185: 213114.2253 | J185: 0.06438564511 | K185: 1115.361019 | L185: 215359.9863
A186: 2035-08-31 | B186: 181 | C186: 210430 | D186: =ROI!Q6 -> 1198.2 | E186: 1326.561556 | F186: 212954.7616 | G186: =ROI!$Q$25 -> 0.07564861792 | I186: 215359.9863 | J186: 0.06438564511 | K186: 1129.055942 | L186: 217687.2422
A187: 2035-09-30 | B187: 182 | C187: 212954.7616 | D187: =ROI!Q7 -> 1198.2 | E187: 1342.477783 | F187: 215495.4393 | G187: =ROI!$Q$25 -> 0.07564861792 | I187: 217687.2422 | J187: 0.06438564511 | K187: 1142.602475 | L187: 220028.0447
A188: 2035-10-31 | B188: 183 | C188: 215495.4393 | D188: =ROI!Q8 -> 1198.2 | E188: 1358.494346 | F188: 218052.1337 | G188: =ROI!$Q$25 -> 0.07564861792 | I188: 220028.0447 | J188: 0.06438564511 | K188: 1156.234407 | L188: 222382.4791
A189: 2035-11-30 | B189: 184 | C189: 218052.1337 | D189: =ROI!Q9 -> 1198.2 | E189: 1374.611879 | F189: 220624.9456 | G189: =ROI!$Q$25 -> 0.07564861792 | I189: 222382.4791 | J189: 0.06438564511 | K189: 1169.952275 | L189: 224750.6314
A190: 2035-12-31 | B190: 185 | C190: 220624.9456 | D190: =ROI!Q10 -> 1198.2 | E190: 1390.831017 | F190: 223213.9766 | G190: =ROI!$Q$25 -> 0.07564861792 | I190: 224750.6314 | J190: 0.06438564511 | K190: 1183.756621 | L190: 227132.588
A191: 2036-01-31 | B191: 186 | C191: 223213.9766 | D191: =ROI!Q11 -> 1198.2 | E191: 1407.152402 | F191: 225819.329 | G191: =ROI!$Q$25 -> 0.07564861792 | I191: 227132.588 | J191: 0.06438564511 | K191: 1197.64799 | L191: 229528.436
A192: 2036-02-29 | B192: 187 | C192: 225819.329 | D192: =ROI!Q12 -> 1198.2 | E192: 1423.576678 | F192: 228441.1057 | G192: =ROI!$Q$25 -> 0.07564861792 | I192: 229528.436 | J192: 0.06438564511 | K192: 1211.626931 | L192: 231938.2629
A193: 2036-03-31 | B193: 188 | C193: 228441.1057 | D193: =ROI!Q13 -> 1198.2 | E193: 1440.104493 | F193: 231079.4102 | G193: =ROI!$Q$25 -> 0.07564861792 | I193: 231938.2629 | J193: 0.06438564511 | K193: 1225.693996 | L193: 234362.1569
A194: 2036-04-30 | B194: 189 | C194: 231079.4102 | D194: =ROI!Q14 -> 1198.2 | E194: 1456.736501 | F194: 233734.3467 | G194: =ROI!$Q$25 -> 0.07564861792 | I194: 234362.1569 | J194: 0.06438564511 | K194: 1239.849741 | L194: 236800.2067
A195: 2036-05-31 | B195: 190 | C195: 233734.3467 | D195: =ROI!Q15 -> 1198.2 | E195: 1473.473357 | F195: 236406.02 | G195: =ROI!$Q$25 -> 0.07564861792 | I195: 236800.2067 | J195: 0.06438564511 | K195: 1254.094724 | L195: 239252.5014
A196: 2036-06-30 | B196: 191 | C196: 236406.02 | D196: =ROI!Q16 -> 1198.2 | E196: 1490.315723 | F196: 239094.5357 | G196: =ROI!$Q$25 -> 0.07564861792 | I196: 239252.5014 | J196: 0.06438564511 | K196: 1268.429509 | L196: 241719.1309
A197: 2036-07-31 | B197: 192 | C197: 239094.5357 | D197: =ROI!Q17 -> 1198.2 | E197: 1507.264265 | F197: 241800 | G197: =ROI!$Q$25 -> 0.07564861792 | I197: 241719.1309 | J197: 0.06438564511 | K197: 1282.85466 | L197: 244200.1856
A198: 2036-08-31 | B198: 193 | C198: 241800 | D198: =ROI!R6 -> 1270.15 | E198: 1797.140125 | F198: 244867.2901 | G198: =ROI!$R$25 -> 0.08918809554 | I198: 244200.1856 | J198: 0.06438564511 | K198: 1297.370749 | L198: 246767.7063
A199: =DATE(YEAR(A198),MONTH(A198)+2,1-1) -> 2036-09-30 | B199: 194 | C199: =IF(ROUND(F198,0)>0,F198,0) -> 244867.2901 | D199: =ROI!R7 -> 1270.15 | E199: =IF(D199=0,0,C199*G199/12) -> 1819.937272 | F199: =SUM(C199:E199) -> 247957.3774 | G199: =ROI!$R$25 -> 0.08918809554 | I199: 246767.7063 | J199: 0.06438564511 | K199: =IF(D199=0,0,C199*J199/12) -> 1313.828203 | L199: 249351.6845
A200: 2036-10-31 | B200: 195 | C200: 247957.3774 | D200: =ROI!R8 -> 1270.15 | E200: 1842.903855 | F200: 251070.4313 | G200: =ROI!$R$25 -> 0.08918809554 | I200: 249351.6845 | J200: =$J$6 -> 0.06438564511 | K200: 1330.407975 | L200: 251952.2425
A201: 2036-11-30 | B201: 196 | C201: 251070.4313 | D201: =ROI!R9 -> 1270.15 | E201: 1866.041134 | F201: 254206.6224 | G201: =ROI!$R$25 -> 0.08918809554 | I201: 251952.2425 | J201: 0.06438564511 | K201: 1347.110974 | L201: 254569.5035
... 45 more rows
